bitfinex-derivatives/quotes_BTCF0:USTF0_20220102
["timestamp","ask_amount","ask_price","bid_price","bid_amount"]
[1641111234979,0.33655115,47048.0,47044.0,0.319009]
[1641111236683,0.33655115,47048.0,47044.0,0.509009]
[1641111237785,0.33655115,47048.0,47045.0,1.111]
[1641111238789,0.33655115,47048.0,47045.0,1.303]
[1641111239588,0.59024839,47050.0,47045.0,1.303]
[1641111239989,0.59024839,47050.0,47045.0,1.111]
[1641111240688,0.59024839,47050.0,47045.0,1.263]
[1641111240890,0.73058406,47051.0,47045.0,1.263]
[1641111242003,0.73058406,47051.0,47045.0,1.111]
[1641111242707,0.73058406,47051.0,47044.0,1.111]
[1641111243305,0.73058406,47051.0,47045.0,0.317621]
[1641111243507,0.73058406,47051.0,47045.0,1.428621]
[1641111244010,0.73058406,47051.0,47048.0,0.15900408]
[1641111244305,0.73058406,47051.0,47045.0,1.111]
[1641111244506,0.59024839,47046.0,47045.0,1.71505079]
[1641111245108,0.59024839,47046.0,47045.0,2.03546279]
[1641111246711,0.59024839,47046.0,47045.0,2.22746279]
[1641111246909,0.59024839,47046.0,47045.0,1.623412]
[1641111247108,0.59024839,47047.0,47045.0,1.623412]
[1641111247311,0.59024839,47047.0,47046.0,0.21104572]
[1641111247512,0.82610224,47048.0,47046.0,1.46238139]
[1641111247708,1.2977522,47054.0,47046.0,1.77968739]
[1641111248109,1.2977522,47054.0,47046.0,1.59968739]
[1641111248110,0.8205632,47049.0,47046.0,1.59968739]
[1641111248312,0.58611657,47048.0,47047.0,0.01132419]
[1641111248511,0.58611657,47048.0,47047.0,1.12332419]
[1641111248713,0.58611657,47048.0,47047.0,1.32101319]
[1641111248909,1.2977522,47055.0,47047.0,1.32101319]
[1641111249110,1.2977522,47055.0,47047.0,1.32001319]
[1641111249314,1.2977522,47055.0,47049.0,1.111]
[1641111249511,1.2977522,47055.0,47047.0,0.197689]
[1641111249512,0.18,47059.0,47052.0,1.111]
[1641111249712,1.43808787,47061.0,47052.0,1.111]
[1641111249910,1.43808787,47061.0,47051.0,1.25133567]
[1641111250111,1.51952787,47061.0,47051.0,1.25133567]
[1641111250611,1.51952787,47061.0,47052.0,1.428749]
[1641111250813,0.09459455,47060.0,47052.0,1.428749]
[1641111251615,0.09459455,47060.0,47052.0,0.317749]
[1641111251816,0.09459455,47060.0,47051.0,0.14033567]
[1641111252815,1.39234675,47060.0,47051.0,1.41933567]
[1641111253217,1.39234675,47060.0,47051.0,0.30833567]
[1641111253717,1.39234675,47060.0,47051.0,1.41933567]
[1641111254118,1.39234675,47060.0,47051.0,1.25133567]
[1641111254320,0.09459455,47059.0,47052.0,0.317105]
[1641111254719,0.09459455,47059.0,47051.0,0.14033567]
[1641111254918,0.09459455,47059.0,47052.0,0.184]
[1641111255921,0.09459455,47059.0,47052.0,1.295]
[1641111256120,0.09459455,47059.0,47052.0,1.111]
[1641111256320,0.09459455,47059.0,47051.0,0.15012967]
[1641111256520,0.17092455,47059.0,47051.0,0.15012967]
[1641111256923,0.17092455,47059.0,47051.0,0.33112967]
[1641111257122,0.82408955,47055.0,47052.0,0.84491393]
[1641111258125,0.82408955,47054.0,47051.0,0.75366136]
[1641111258925,0.58844142,47052.0,47051.0,0.94666136]
[1641111260228,0.09459455,47053.0,47051.0,0.15012967]
[1641111260528,1.2977522,47056.0,47051.0,0.15012967]
[1641111260929,1.2977522,47056.0,47051.0,0.34312967]
[1641111261129,0.09459455,47052.0,47051.0,0.34312967]
[1641111261327,0.09459455,47052.0,47051.0,1.45412967]
[1641111261528,0.07594,47058.0,47051.0,0.34312967]
[1641111262041,0.25594,47058.0,47051.0,0.34312967]
[1641111262229,0.25594,47058.0,47051.0,0.15012967]
[1641111262430,1.29444852,47056.0,47054.0,0.60388026]
[1641111264833,1.29444852,47056.0,47054.0,0.78588026]
[1641111265134,1.29444852,47055.0,47054.0,0.78588026]
[1641111266737,0.82278176,47055.0,47054.0,0.182]
[1641111266943,0.82278176,47055.0,47054.0,0.186]
[1641111268456,0.82278176,47055.0,47051.0,0.15012967]
[1641111268960,0.82278176,47055.0,47054.0,0.186]
[1641111269455,0.82278176,47056.0,47054.0,0.186]
[1641111270056,0.82278176,47056.0,47051.0,0.15012967]
[1641111270558,0.82278176,47055.0,47051.0,0.15012967]
[1641111270856,0.82278176,47055.0,47051.0,0.33412967]
[1641111271258,0.3524706,47052.0,47051.0,0.33412967]
[1641111271766,0.3524706,47053.0,47051.0,0.33412967]
[1641111272259,0.3524706,47053.0,47051.0,0.15012967]
[1641111272457,0.3524706,47053.0,47051.0,0.51209488]
[1641111272859,0.3524706,47053.0,47051.0,0.70309488]
[1641111274262,0.3524706,47053.0,47051.0,0.51209488]
[1641111274864,0.3524706,47053.0,47051.0,0.70309488]
[1641111276065,0.3524706,47053.0,47051.0,0.51209488]
[1641111276766,0.0905816,47055.0,47052.0,0.0905816]
[1641111277369,0.0905816,47055.0,47053.0,0.84542882]
[1641111278870,0.0905816,47055.0,47053.0,1.03442882]
[1641111279071,0.0905816,47056.0,47053.0,1.03442882]
[1641111279874,0.0905816,47054.0,47053.0,1.03442882]
[1641111280670,0.0905816,47054.0,47053.0,0.84542882]
[1641111280870,0.0905816,47054.0,47053.0,1.03742882]
[1641111281770,0.0905816,47056.0,47053.0,1.03742882]
[1641111282172,0.0905816,47056.0,47055.0,0.60387961]
[1641111282173,1.38503012,47056.0,47055.0,0.60387961]
[1641111282572,0.0905816,47056.0,47055.0,0.60387961]
[1641111283072,0.0905816,47056.0,47055.0,0.78887961]
[1641111284173,0.0905816,47056.0,47055.0,0.185]
[1641111284875,0.0905816,47056.0,47054.0,0.60387961]
[1641111285075,0.0905816,47056.0,47055.0,0.186]
[1641111286375,0.0905816,47056.0,47054.0,0.60387961]
[1641111287078,0.0905816,47056.0,47054.0,0.78987961]
[1641111288375,0.0905816,47056.0,47055.0,0.60387961]
[1641111288580,0.0905816,47056.0,47055.0,0.67319961]
[1641111288779,0.14033567,47061.0,47055.0,0.67319961]
[1641111288780,0.0905816,47057.0,47055.0,0.91474882]
[1641111288979,0.0905816,47057.0,47055.0,1.10674882]
[1641111289877,1.38503012,47060.0,47055.0,1.10674882]
[1641111290477,0.0905816,47060.0,47059.0,0.362248]
[1641111290981,0.0905816,47060.0,47059.0,0.512248]
[1641111291182,0.0905816,47060.0,47059.0,0.15]
[1641111292281,0.0905816,47060.0,47058.0,0.60374667]
[1641111292985,0.0905816,47060.0,47058.0,0.74774667]
[1641111293183,0.0905816,47060.0,47059.0,0.60374667]
[1641111294982,0.0905816,47060.0,47059.0,0.76174667]
[1641111295686,0.0905816,47060.0,47059.0,0.96587477]
[1641111296384,0.0905816,47060.0,47059.0,0.80787477]
[1641111296786,0.0905816,47060.0,47059.0,0.60374667]
[1641111296985,0.0905816,47060.0,47059.0,0.75574667]
[1641111298189,0.0905816,47060.0,47059.0,0.95987477]
[1641111298386,0.0905816,47060.0,47059.0,0.80787477]
[1641111298988,0.0905816,47060.0,47059.0,0.96787477]
[1641111300994,0.0905816,47060.0,47059.0,0.98587477]
[1641111302396,0.0905816,47060.0,47059.0,0.80787477]
[1641111303096,0.0905816,47060.0,47059.0,0.96887477]
[1641111304499,0.0905816,47060.0,47059.0,0.80787477]
[1641111305001,0.0905816,47060.0,47059.0,0.60374667]
[1641111305200,0.0905816,47060.0,47059.0,0.76774667]
[1641111305510,0.0905816,47060.0,47059.0,0.164]
[1641111306501,0.0905816,47060.0,47058.0,0.36209773]
[1641111307103,0.0905816,47060.0,47058.0,0.51509773]
[1641111308505,0.0905816,47060.0,47058.0,0.36209773]
[1641111309214,0.0905816,47060.0,47058.0,0.52709773]
[1641111310423,0.0905816,47060.0,47058.0,0.36209773]
[1641111310737,0.82357635,47059.0,47058.0,0.36209773]
[1641111311124,0.82357635,47059.0,47058.0,0.53409773]
[1641111311525,0.0905816,47060.0,47058.0,0.172]
[1641111312527,0.0905816,47060.0,47057.0,0.36209773]
[1641111313027,0.0905816,47060.0,47058.0,0.36209773]
[1641111313429,0.0905816,47060.0,47057.0,0.52709773]
[1641111313928,0.0905816,47060.0,47058.0,0.36209773]
[1641111315227,0.0905816,47060.0,47058.0,0.52009773]
[1641111315527,0.0905816,47060.0,47059.0,0.36209773]
[1641111317128,0.0905816,47060.0,47059.0,0.54109773]
[1641111318430,0.0905816,47060.0,47059.0,0.36209773]
[1641111319135,0.0905816,47060.0,47059.0,0.54009773]
[1641111320233,0.0905816,47060.0,47059.0,0.178]
[1641111320432,0.0905816,47060.0,47058.0,0.36209773]
[1641111320834,0.0905816,47060.0,47059.0,0.36209773]
[1641111322338,0.0905816,47060.0,47058.0,0.49209773]
[1641111322537,0.0905816,47060.0,47058.0,0.36209773]
[1641111323235,0.0905816,47060.0,47058.0,0.51809773]
[1641111324442,0.0905816,47060.0,47058.0,0.36209773]
[1641111324840,0.0905816,47060.0,47059.0,0.36209773]
[1641111326441,0.0905816,47060.0,47059.0,0.37189173]
[1641111326643,0.43764388,47064.0,47060.0,1.111]
[1641111326842,0.37364388,47064.0,47062.0,1.111]
[1641111327246,0.37364388,47064.0,47063.0,0.001688]
[1641111327545,0.37364388,47064.0,47063.0,0.02293163]
[1641111327748,1.41212566,47068.0,47063.0,0.02293163]
[1641111327945,1.41212566,47071.0,47063.0,0.02293163]
[1641111328245,0.14033567,47070.0,47063.0,0.02293163]
[1641111328948,0.14033567,47070.0,47066.0,0.36209773]
[1641111329147,0.14033567,47070.0,47066.0,0.42753773]
[1641111329551,0.32033567,47070.0,47066.0,0.42753773]
[1641111330157,0.14033567,47070.0,47066.0,0.42753773]
[1641111330349,0.14033567,47070.0,47068.0,0.36209773]
[1641111330548,0.32033567,47070.0,47068.0,0.36209773]
[1641111330749,0.14033567,47070.0,47068.0,0.36209773]
[1641111331148,0.32033567,47070.0,47068.0,0.36209773]
[1641111331350,0.14033567,47070.0,47068.0,0.36209773]
[1641111333650,0.32033567,47070.0,47068.0,0.36209773]
[1641111334552,0.14033567,47070.0,47068.0,0.36209773]
[1641111336156,0.14033567,47070.0,47069.0,0.009794]
[1641111336357,0.14033567,47070.0,47069.0,0.03103635]
[1641111337156,1.41212566,47072.0,47069.0,0.03103635]
[1641111337357,1.41212566,47072.0,47069.0,0.21903635]
[1641111337955,1.41212566,47072.0,47070.0,0.14033567]
[1641111337956,1.30546166,47072.0,47070.0,0.14033567]
[1641111338157,1.30546166,47072.0,47071.0,0.60374667]
[1641111339161,1.48546166,47072.0,47071.0,0.60374667]
[1641111339565,0.18,47072.0,47071.0,0.60374667]
[1641111339761,0.18,47072.0,47065.0,0.36170541]
[1641111339965,0.40809567,47072.0,47065.0,0.36170541]
[1641111340763,0.82969057,47071.0,47062.0,0.38295082]
[1641111341165,0.82969057,47071.0,47062.0,0.46895082]
[1641111341565,0.82969057,47070.0,47062.0,0.10724541]
[1641111341966,0.14033567,47066.0,47062.0,0.10724541]
[1641111342167,0.18,47063.0,47062.0,0.086]
[1641111342570,0.18,47063.0,47061.0,0.36170541]
[1641111342868,0.18,47062.0,47061.0,0.36170541]
[1641111343682,0.18,47062.0,47060.0,0.60374667]
[1641111343882,0.192,47063.0,47058.0,0.36170541]
[1641111343883,0.18,47061.0,47058.0,0.36170541]
[1641111344081,0.32033567,47061.0,47058.0,0.36170541]
[1641111344282,0.32033567,47061.0,47055.0,0.85522282]
[1641111344283,0.32033567,47061.0,47057.0,0.36170541]
[1641111344481,0.14033567,47061.0,47057.0,0.36170541]
[1641111345282,0.33433567,47061.0,47057.0,0.36170541]
[1641111346587,0.14033567,47061.0,47057.0,0.36170541]
[1641111347288,0.33433567,47061.0,47057.0,0.36170541]
[1641111348690,0.14033567,47061.0,47057.0,0.36170541]
[1641111349391,0.33433567,47061.0,47057.0,0.36170541]
[1641111349591,0.33433567,47061.0,47056.0,0.36170541]
[1641111350693,0.14033567,47061.0,47056.0,0.36170541]
[1641111351296,0.33333567,47061.0,47056.0,0.36170541]
[1641111352695,0.14033567,47061.0,47056.0,0.36170541]
[1641111353394,0.33333567,47061.0,47056.0,0.36170541]
[1641111353994,0.33333567,47061.0,47057.0,0.318652]
[1641111354195,0.33333567,47061.0,47056.0,0.36170541]
[1641111354696,0.14033567,47061.0,47056.0,0.36170541]
[1641111355295,0.33333567,47061.0,47056.0,0.36170541]
[1641111356497,0.33333567,47061.0,47056.0,1.47270541]
[1641111356695,0.14033567,47061.0,47056.0,1.47270541]
[1641111356896,0.14033567,47061.0,47057.0,0.317254]
[1641111357296,0.33133567,47061.0,47057.0,0.317254]
[1641111357497,0.33133567,47061.0,47059.0,0.36170541]
[1641111358700,0.14033567,47061.0,47059.0,0.36170541]
[1641111359398,0.32133567,47061.0,47059.0,0.51270541]
[1641111360702,0.14033567,47061.0,47059.0,0.36170541]
[1641111360900,0.14033567,47061.0,47060.0,0.36170541]
[1641111361301,0.32033567,47061.0,47060.0,0.36170541]
[1641111362801,0.14033567,47061.0,47060.0,0.36170541]
[1641111363309,0.31933567,47061.0,47060.0,0.42570541]
[1641111363707,0.31933567,47061.0,47058.0,0.60374667]
[1641111363911,0.18,47059.0,47058.0,0.60374667]
[1641111364704,0.18,47059.0,47055.0,0.60374667]
[1641111364901,0.18,47056.0,47055.0,0.60374667]
[1641111365704,0.18,47056.0,47050.0,0.60374667]
[1641111365904,0.82969057,47057.0,47050.0,0.60374667]
[1641111366303,0.18,47052.0,47050.0,0.60374667]
[1641111367304,0.372,47052.0,47049.0,0.60374667]
[1641111368605,0.18,47052.0,47049.0,0.60374667]
[1641111369206,0.372,47052.0,47049.0,0.60374667]
[1641111370008,0.192,47052.0,47049.0,0.60374667]
[1641111370608,0.14033567,47053.0,47049.0,0.60374667]
[1641111371208,0.33333567,47053.0,47049.0,0.60374667]
[1641111372110,0.33333567,47053.0,47046.0,0.74408234]
[1641111372310,0.18,47052.0,47046.0,0.74408234]
[1641111372712,0.14033567,47053.0,47046.0,0.74408234]
[1641111372911,0.18,47052.0,47046.0,0.74408234]
[1641111373210,0.33233567,47053.0,47046.0,0.74408234]
[1641111374112,0.33233567,47053.0,47047.0,0.36172443]
[1641111375113,0.14033567,47053.0,47047.0,0.36172443]
[1641111375312,0.33333567,47053.0,47047.0,0.36172443]
[1641111375515,0.18,47052.0,47047.0,0.36172443]
[1641111375917,0.33333567,47053.0,47047.0,0.36172443]
[1641111376118,0.18,47052.0,47047.0,0.36172443]
[1641111376716,0.14033567,47053.0,47047.0,0.36172443]
[1641111377316,0.33333567,47053.0,47047.0,0.36172443]
[1641111378517,0.14033567,47053.0,47048.0,0.02125199]
[1641111379318,0.31433567,47053.0,47048.0,0.02125199]
[1641111379920,0.31433567,47053.0,47050.0,0.36172443]
[1641111380733,0.14033567,47053.0,47050.0,0.36172443]
[1641111381324,0.31633567,47053.0,47050.0,0.36172443]
[1641111382524,0.14033567,47053.0,47050.0,0.36172443]
[1641111383324,0.31633567,47053.0,47050.0,0.36172443]
[1641111383625,0.31633567,47053.0,47052.0,0.36172443]
[1641111383826,0.31633567,47053.0,47052.0,0.44202443]
[1641111384725,0.14033567,47053.0,47052.0,0.44202443]
[1641111384925,0.14033567,47053.0,47052.0,0.0803]
[1641111385324,0.31633567,47053.0,47052.0,0.0803]
[1641111385724,0.31633567,47053.0,47052.0,0.44202443]
[1641111386627,0.14033567,47053.0,47052.0,0.44202443]
[1641111387128,0.14033567,47053.0,47052.0,0.0803]
[1641111387331,0.31833567,47053.0,47052.0,0.0803]
[1641111387729,0.31833567,47053.0,47052.0,0.44202443]
[1641111388130,0.31833567,47053.0,47052.0,0.46327458]
[1641111388430,0.35427652,47058.0,47052.0,1.57427458]
[1641111388630,0.24690678,47058.0,47057.0,1.31224671]
[1641111388832,0.24690678,47058.0,47057.0,1.32204071]
[1641111389032,0.24690678,47058.0,47057.0,1.63901171]
[1641111389232,0.59134702,47060.0,47057.0,1.97734738]
[1641111389431,0.59134702,47065.0,47059.0,0.001]
[1641111389730,0.59134702,47065.0,47060.0,0.499383]
[1641111390028,0.59134702,47065.0,47057.0,1.47937638]
[1641111390029,0.59134702,47065.0,47058.0,0.319302]
[1641111390229,0.59134702,47065.0,47058.0,1.430302]
[1641111390431,2.69544702,47069.0,47060.0,0.73181553]
[1641111390629,0.18,47065.0,47060.0,0.73181553]
[1641111390828,2.69544702,47069.0,47060.0,0.73181553]
[1641111391029,0.77134702,47069.0,47060.0,0.60374667]
[1641111391230,0.59134702,47067.0,47060.0,0.195]
[1641111391433,0.59134702,47067.0,47061.0,1.111]
[1641111391631,0.59134702,47067.0,47061.0,0.07318]
[1641111391832,0.59134702,47067.0,47062.0,0.31921]
[1641111392044,0.59134702,47067.0,47061.0,0.07318]
[1641111392243,0.77134702,47069.0,47061.0,0.07318]
[1641111393248,0.77134702,47069.0,47061.0,0.189]
[1641111393249,0.59134702,47068.0,47061.0,0.189]
[1641111394751,0.59134702,47068.0,47059.0,0.60374667]
[1641111395251,0.77134702,47068.0,47059.0,0.79474667]
[1641111395451,0.59134702,47068.0,47059.0,0.79474667]
[1641111396654,0.59134702,47068.0,47059.0,0.60374667]
[1641111396851,0.59134702,47068.0,47059.0,0.78374667]
[1641111397252,0.59134702,47068.0,47060.0,0.318666]
[1641111397452,0.59134702,47068.0,47060.0,1.429666]
[1641111397855,0.59134702,47069.0,47060.0,2.13130201]
[1641111398054,0.59134702,47069.0,47060.0,1.02030201]
[1641111398453,0.59134702,47069.0,47060.0,1.20030201]
[1641111398655,0.59134702,47069.0,47060.0,1.10241267]
[1641111398856,0.59134702,47069.0,47060.0,2.21341267]
[1641111399055,0.35534442,47068.0,47062.0,0.36174809]
[1641111399257,0.35534442,47068.0,47062.0,0.43356809]
[1641111399458,0.35534442,47068.0,47063.0,0.318647]
[1641111401258,0.35534442,47068.0,47063.0,0.513647]
[1641111402563,0.35534442,47068.0,47063.0,0.318647]
[1641111402965,0.35534442,47068.0,47062.0,0.36174809]
[1641111403361,0.49568009,47070.0,47063.0,0.195]
[1641111403761,0.49568009,47070.0,47063.0,0.513911]
[1641111403961,0.49568009,47070.0,47063.0,0.195]
[1641111404163,0.14033567,47070.0,47063.0,0.195]
[1641111404565,0.14033567,47070.0,47060.0,0.36174809]
[1641111405363,0.14033567,47070.0,47060.0,0.55474809]
[1641111406764,0.14033567,47070.0,47060.0,0.36174809]
[1641111407264,0.14033567,47070.0,47060.0,0.55374809]
[1641111408667,0.14033567,47070.0,47060.0,0.36174809]
[1641111409079,0.14033567,47070.0,47061.0,1.111]
[1641111409268,0.14033567,47070.0,47061.0,1.516187]
[1641111409671,0.14033567,47070.0,47061.0,0.405187]
[1641111409869,0.14033567,47070.0,47061.0,1.516187]
[1641111410071,0.14033567,47070.0,47061.0,0.405187]
[1641111410271,0.14033567,47070.0,47061.0,0.08836]
[1641111410472,0.14033567,47070.0,47060.0,0.55474809]
[1641111410672,0.14033567,47070.0,47060.0,0.36174809]
[1641111410873,0.14033567,47070.0,47064.0,0.14398908]
[1641111411476,0.14033567,47070.0,47064.0,0.28432475]
[1641111412376,0.14033567,47070.0,47064.0,0.14033567]
[1641111413478,0.14033567,47070.0,47064.0,0.32933567]
[1641111413679,0.49675362,47070.0,47064.0,0.32933567]
[1641111413976,0.18,47069.0,47064.0,0.32933567]
[1641111414179,0.26716,47069.0,47064.0,0.32933567]
[1641111414682,0.26716,47069.0,47064.0,0.14033567]
[1641111415176,0.08716,47069.0,47064.0,0.14033567]
[1641111415376,0.08716,47069.0,47064.0,0.32933567]
[1641111415576,0.49675362,47070.0,47064.0,0.32933567]
[1641111416576,0.49675362,47070.0,47064.0,0.14033567]
[1641111416777,0.14033567,47070.0,47064.0,1.25133567]
[1641111417079,0.09055489,47069.0,47068.0,0.60271999]
[1641111418880,0.09055489,47069.0,47067.0,0.84380798]
[1641111419280,0.09055489,47069.0,47068.0,0.197]
[1641111419685,0.09055489,47069.0,47068.0,1.18029768]
[1641111420685,0.09055489,47069.0,47068.0,0.1394897]
[1641111421284,0.19555489,47069.0,47068.0,0.55412753]
[1641111422488,0.19555489,47069.0,47068.0,0.36212753]
[1641111422691,0.09055489,47069.0,47068.0,0.36212753]
[1641111423387,0.22755489,47069.0,47068.0,0.55212753]
[1641111424587,0.09055489,47069.0,47068.0,0.36212753]
[1641111425286,0.09055489,47069.0,47068.0,0.55712753]
[1641111425487,0.09055489,47069.0,47068.0,0.195]
[1641111426589,0.09055489,47069.0,47067.0,0.60354588]
[1641111427388,0.21155489,47069.0,47067.0,0.79454588]
[1641111428291,0.09055489,47068.0,47067.0,0.79454588]
[1641111428689,0.09055489,47068.0,47067.0,0.60354588]
[1641111429289,0.09055489,47068.0,47067.0,0.89973231]
[1641111430194,0.09055489,47069.0,47067.0,0.89973231]
[1641111430690,0.09055489,47069.0,47068.0,0.36212517]
[1641111431391,0.24355489,47069.0,47068.0,0.55012517]
[1641111432592,0.09055489,47069.0,47068.0,0.36212517]
[1641111433291,0.09055489,47069.0,47068.0,0.55612517]
[1641111434593,0.09055489,47069.0,47068.0,0.36212517]
[1641111435396,0.09055489,47069.0,47068.0,0.55512517]
[1641111436196,0.09055489,47069.0,47068.0,0.193]
[1641111436395,0.09055489,47069.0,47068.0,0.29219099]
[1641111436600,0.09055489,47069.0,47068.0,0.09919099]
[1641111437296,1.30686582,47072.0,47068.0,0.29419099]
[1641111438698,1.30686582,47073.0,47070.0,0.84514679]
[1641111439101,0.09055489,47071.0,47070.0,0.84514679]
[1641111439301,0.09055489,47071.0,47070.0,1.02914679]
[1641111439704,1.30686582,47072.0,47070.0,0.184]
[1641111440303,1.30686582,47071.0,47070.0,0.184]
[1641111440710,1.30686582,47071.0,47069.0,0.84514679]
[1641111441110,1.30686582,47071.0,47070.0,0.13483707]
[1641111441713,1.30686582,47072.0,47070.0,0.84514679]
[1641111442515,1.30686582,47072.0,47070.0,1.20722134]
[1641111442715,1.39742071,47074.0,47070.0,0.36207455]
[1641111443317,1.39742071,47074.0,47070.0,0.54707455]
[1641111444620,1.30686582,47073.0,47069.0,0.36207455]
[1641111445418,1.30686582,47073.0,47069.0,0.55707455]
[1641111445618,1.39742071,47074.0,47071.0,0.36207455]
[1641111446219,0.09055489,47074.0,47071.0,0.36207455]
[1641111446819,0.09055489,47073.0,47071.0,0.36207455]
[1641111447419,0.09055489,47073.0,47071.0,0.55707455]
[1641111448422,1.39742071,47074.0,47071.0,0.55707455]
[1641111448621,1.39742071,47074.0,47071.0,0.36207455]
[1641111449326,1.39742071,47074.0,47071.0,0.55107455]
[1641111449524,0.18,47073.0,47071.0,0.55107455]
[1641111449721,1.39742071,47074.0,47071.0,0.55107455]
[1641111450822,1.39742071,47074.0,47071.0,0.189]
[1641111451222,1.39742071,47074.0,47071.0,0.191]
[1641111451423,1.39742071,47074.0,47071.0,0.55307455]
[1641111452624,1.39742071,47074.0,47071.0,0.36207455]
[1641111453322,1.39742071,47074.0,47071.0,0.55107455]
[1641111454425,0.18,47073.0,47071.0,0.55107455]
[1641111454626,1.39742071,47074.0,47071.0,0.36207455]
[1641111454927,0.18,47073.0,47071.0,0.36207455]
[1641111455327,0.18,47073.0,47071.0,0.55107455]
[1641111455528,1.39742071,47074.0,47071.0,0.55107455]
[1641111455728,1.57742071,47074.0,47071.0,0.189]
[1641111456133,1.39742071,47074.0,47071.0,0.189]
[1641111456330,0.09055489,47073.0,47071.0,0.189]
[1641111456629,0.09055489,47073.0,47070.0,0.36207455]
[1641111457330,0.09055489,47073.0,47070.0,0.55707455]
[1641111457831,1.39742071,47074.0,47070.0,0.55707455]
[1641111458129,1.39742071,47074.0,47072.0,0.36207455]
[1641111458531,0.09055489,47074.0,47072.0,0.36207455]
[1641111458734,0.09055489,47074.0,47073.0,0.009794]
[1641111459332,0.09055489,47074.0,47073.0,0.206794]
[1641111459534,0.09055489,47074.0,47073.0,0.92193724]
[1641111460834,0.09055489,47074.0,47073.0,0.12148088]
[1641111461238,0.09055489,47074.0,47073.0,0.31848088]
[1641111461432,1.4256718,47078.0,47073.0,0.31848088]
[1641111461633,0.18,47077.0,47073.0,0.31848088]
[1641111462032,1.4256718,47078.0,47073.0,0.31848088]
[1641111462433,0.09055489,47074.0,47073.0,0.31848088]
[1641111462634,0.09055489,47074.0,47073.0,0.12148088]
[1641111462836,1.4256718,47078.0,47073.0,0.96662767]
[1641111463235,0.18,47077.0,47073.0,1.15862767]
[1641111463437,0.18,47077.0,47076.0,0.36218768]
[1641111463637,0.181,47077.0,47076.0,0.36218768]
[1641111464436,0.27155489,47077.0,47073.0,0.55418768]
[1641111464635,0.09055489,47077.0,47073.0,0.36218768]
[1641111464838,0.27055489,47077.0,47073.0,0.36218768]
[1641111465238,0.27055489,47077.0,47073.0,0.53918768]
[1641111465439,0.09055489,47076.0,47073.0,0.53918768]
[1641111466543,0.09055489,47076.0,47073.0,0.36218768]
[1641111467239,0.09055489,47076.0,47073.0,0.54918768]
[1641111467441,1.51622669,47079.0,47073.0,0.54918768]
[1641111468142,0.09055489,47079.0,47075.0,0.36218768]
[1641111468342,0.001,47076.0,47075.0,0.36218768]
[1641111469344,0.09155489,47076.0,47075.0,0.55318768]
[1641111470547,0.09155489,47076.0,47075.0,0.36218768]
[1641111471249,0.09155489,47076.0,47075.0,0.55918768]
[1641111471553,0.09155489,47076.0,47075.0,0.197]
[1641111472658,0.09155489,47076.0,47074.0,0.36218768]
[1641111472855,0.09055489,47076.0,47074.0,0.36218768]
[1641111473255,0.09055489,47075.0,47074.0,0.196]
[1641111474358,1.74600747,47080.0,47074.0,0.196]
[1641111474359,1.30936359,47077.0,47074.0,0.55818768]
[1641111474769,1.30936359,47077.0,47074.0,0.36218768]
[1641111475377,1.30936359,47077.0,47074.0,0.55818768]
[1641111476772,1.30936359,47078.0,47075.0,0.36218768]
[1641111476974,0.001,47076.0,47075.0,0.36218768]
[1641111477370,0.001,47076.0,47075.0,0.55618768]
[1641111477970,0.09155489,47076.0,47075.0,0.194]
[1641111478774,0.09155489,47076.0,47074.0,0.36218768]
[1641111478978,0.09055489,47076.0,47074.0,0.36218768]
[1641111479274,0.09055489,47076.0,47074.0,0.55818768]
[1641111479476,0.09055489,47075.0,47074.0,0.55818768]
[1641111481074,0.09055489,47075.0,47074.0,0.36218768]
[1641111481276,1.30936359,47076.0,47074.0,0.55918768]
[1641111482578,1.30936359,47076.0,47074.0,0.36218768]
[1641111482780,1.30936359,47076.0,47073.0,0.36218768]
[1641111483279,1.30936359,47076.0,47073.0,0.55818768]
[1641111483879,1.30936359,47076.0,47074.0,0.36218768]
[1641111484483,1.39991848,47077.0,47074.0,0.36218768]
[1641111485284,1.39991848,47077.0,47075.0,0.61464169]
[1641111485487,1.39991848,47077.0,47076.0,1.13223835]
[1641111485685,1.30936359,47078.0,47076.0,1.13223835]
[1641111485884,1.30936359,47078.0,47077.0,0.18]
[1641111486285,1.25706359,47078.0,47077.0,1.75288567]
[1641111486493,0.83225431,47078.0,47077.0,1.75288567]
[1641111487190,0.03395431,47078.0,47077.0,1.87784766]
[1641111487486,0.59816973,47078.0,47077.0,2.09208435]
[1641111488287,0.35822345,47085.0,47077.0,2.69471473]
[1641111488489,0.35822345,47085.0,47082.0,0.18]
[1641111488787,0.35822345,47085.0,47078.0,0.009794]
[1641111488987,0.35822345,47085.0,47079.0,0.36157035]
[1641111489890,0.35822345,47083.0,47078.0,0.192]
[1641111490889,0.35822345,47080.0,47078.0,0.192]
[1641111491288,0.35822345,47080.0,47078.0,0.193]
[1641111491892,0.35822345,47081.0,47078.0,0.193]
[1641111492791,0.35822345,47081.0,47077.0,0.14033567]
[1641111493292,0.35822345,47081.0,47077.0,0.33233567]
[1641111496292,0.35822345,47082.0,47077.0,0.33233567]
[1641111496497,0.35822345,47082.0,47078.0,0.009794]
[1641111496692,0.35822345,47082.0,47079.0,0.02123772]
[1641111497393,0.35822345,47082.0,47079.0,0.21123772]
[1641111497994,0.35822345,47083.0,47079.0,0.21123772]
[1641111498294,0.35822345,47083.0,47082.0,0.14033567]
[1641111498897,0.59816973,47084.0,47082.0,0.14033567]
[1641111499296,0.59816973,47084.0,47082.0,0.33033567]
[1641111500799,0.59816973,47085.0,47082.0,0.14033567]
[1641111501498,0.59816973,47085.0,47082.0,0.33133567]
[1641111501700,0.59816973,47084.0,47082.0,0.33133567]
[1641111502702,0.59816973,47084.0,47082.0,0.14033567]
[1641111503400,0.59816973,47084.0,47082.0,0.33233567]
[1641111504801,0.59816973,47084.0,47082.0,0.14033567]
[1641111505204,0.59816973,47085.0,47082.0,0.14033567]
[1641111505401,0.59816973,47085.0,47082.0,0.33233567]
[1641111506805,0.59816973,47085.0,47082.0,0.14033567]
[1641111507310,0.59816973,47086.0,47082.0,0.14033567]
[1641111507513,0.59816973,47086.0,47082.0,0.33233567]
[1641111507907,0.59816973,47085.0,47082.0,0.33233567]
[1641111508519,0.59816973,47085.0,47084.0,0.02123529]
[1641111508718,0.59816973,47086.0,47084.0,0.02123529]
[1641111509521,0.59816973,47086.0,47084.0,0.21623529]
[1641111510120,0.18,47087.0,47084.0,0.195]
[1641111510325,1.45321893,47088.0,47085.0,0.16457846]
[1641111510920,0.14033567,47088.0,47087.0,0.36210731]
[1641111511622,1.4256718,47089.0,47087.0,0.55410731]
[1641111512230,1.4256718,47091.0,47088.0,0.36210731]
[1641111513427,1.4256718,47091.0,47088.0,0.55010731]
[1641111513636,1.6056718,47091.0,47088.0,0.55010731]